fUST/lending_fUST_20251217
["ID","MTS","AMOUNT","RATE_DAILY","PERIOD"]
[398863679,1765935032395,-500.0,0.00013273,2]
[398863680,1765935032404,-2172.19564187,0.000133,2]
[398863681,1765935032413,-2293.67445044,0.00013352,2]
[398863682,1765935032422,-48811.34704839,0.00013399,2]
[398863683,1765935032434,-597.21929559,0.00013399,2]
[398863684,1765935032444,-686.42586313,0.00013399,2]
[398863685,1765935032455,-956.62484928,0.00013399,2]
[398863772,1765935037780,-437.8846444,0.00013398,2]
[398863773,1765935037790,-170.60525647,0.00013398,2]
[398863774,1765935037799,-281.29009913,0.00013399,2]
[398863775,1765935037813,-164927.67464728,0.00013399,2]
[398864189,1765935046052,-7085.89058429,0.000133,2]
[398864191,1765935046063,-5193.94038961,0.00013399,2]
[398864193,1765935046073,-532.71886932,0.00013399,2]
[398864278,1765935046902,150.0,8.133e-05,2]
[398864350,1765935600173,5000.0,9.64e-05,2]
[398864351,1765935689171,200.0,9.589e-05,2]
[398864352,1765935808022,5000.0,9.64e-05,2]
[398864353,1765936016664,4004.78323333,9.64e-05,2]
[398864354,1765936054135,-170.35364773,9.851e-05,2]
[398864355,1765936054154,-291.75169841,9.901e-05,2]
[398864375,1765936231797,-559.0,9.901e-05,2]
[398864377,1765936231806,-170.53116779,9.951e-05,2]
[398864379,1765936231815,-152.14,0.0001,2]
[398864381,1765936231824,-296.89520704,0.00010959,2]
[398864504,1765936237877,-702.10479296,0.00010959,2]
[398864505,1765936237886,-152.14,0.000114,2]
[398864506,1765936237895,-64.32650497,0.00011951,2]
[398864507,1765936237906,-136.90027302,0.00011951,2]
[398864508,1765936237915,-300.0,0.00011998,2]
[398864509,1765936237924,-445.58558093,0.00011999,2]
[398864510,1765936237933,-500.0,0.00011999,2]
[398864511,1765936237943,-260.51550646,0.00011999,2]
[398864512,1765936237952,-383.60960239,0.00011999,2]
[398864513,1765936237961,-170.4450372,0.00011999,2]
[398864514,1765936237972,-329.5549628,0.00011999,2]
[398864515,1765936237981,-386.27099471,0.00011999,2]
[398864516,1765936237990,-500.0,0.00011999,2]
[398864517,1765936237999,-500.0,0.00011999,2]
[398864518,1765936238009,-368.60347995,0.00011999,2]
[398864541,1765936240090,-267.14307938,0.00011999,2]
[398864542,1765936240099,-500.0,0.00011999,2]
[398864543,1765936240109,-500.0,0.00011999,2]
[398864544,1765936240118,-196.99308866,0.00011999,2]
[398864545,1765936240127,-500.0,0.00011999,2]
[398864546,1765936240136,-362.61383281,0.00011999,2]
[398864547,1765936240151,-137.38616719,0.00011999,2]
[398864548,1765936240160,-500.0,0.00011999,2]
[398864549,1765936240169,-500.0,0.00011999,2]
[398864550,1765936240179,-229.84088341,0.00011999,2]
[398864551,1765936240188,-500.0,0.00011999,2]
[398864552,1765936240198,-1388.69809119,0.00012,2]
[398864580,1765936242989,-771.99000221,0.00012,2]
[398864581,1765936243043,-32839.3119066,0.00012,2]
[398864582,1765936243052,-189.27439796,0.00012003,2]
[398864583,1765936243062,-757.09759183,0.00012003,2]
[398864584,1765936243071,-1703.46958162,0.00012003,2]
[398864585,1765936243080,-300.0,0.00012239,2]
[398864586,1765936243090,-300.0,0.00012239,2]
[398864587,1765936243099,-300.0,0.00012239,2]
[398864588,1765936243108,-300.0,0.00012239,2]
[398864590,1765936243118,-300.0,0.00012239,2]
[398864592,1765936243126,-300.0,0.00012239,2]
[398864593,1765936243135,-300.0,0.00012239,2]
[398864594,1765936243145,-300.0,0.00012239,2]
[398864595,1765936243154,-300.0,0.00012239,2]
[398864596,1765936243162,-300.0,0.00012239,2]
[398864597,1765936243171,-300.0,0.00012239,2]
[398864598,1765936243180,-300.0,0.00012239,2]
[398864599,1765936243189,-300.0,0.00012239,2]
[398864600,1765936243199,-300.0,0.00012239,2]
[398864601,1765936243208,-300.0,0.00012239,2]
[398864602,1765936243217,-2463.76,0.00012329,2]
[398864603,1765936243226,-2053.14,0.00012329,2]
[398864604,1765936243235,-1710.95,0.00012329,2]
[398864605,1765936243245,-1710.95,0.00012329,2]
[398864606,1765936243262,-1140.63,0.00012329,2]
[398864607,1765936243271,-950.53,0.00012329,2]
[398864608,1765936243281,-792.1,0.00012329,2]
[398864609,1765936243290,-660.09,0.00012329,2]
[398864610,1765936243300,-550.07,0.00012329,2]
[398864611,1765936243310,-458.39,0.00012329,2]
[398864612,1765936243319,-382.0,0.00012329,2]
[398864613,1765936243328,-318.33,0.00012329,2]
[398864614,1765936243338,-265.27,0.00012329,2]
[398864615,1765936243348,-221.06,0.00012329,2]
[398864616,1765936243358,-184.22,0.00012329,2]
[398864617,1765936243367,-153.52,0.00012329,2]
[398864618,1765936243377,-767.6,0.00012329,2]
[398864619,1765936243386,-600.0,0.00012483,2]
[398864620,1765936243396,-173.68292151,0.00012635,2]
[398864621,1765936243405,-312.62925871,0.00012635,2]
[398864622,1765936243414,-198.08824625,0.00012641,2]
[398864623,1765936243422,-152.14,0.000127,2]
[398864624,1765936243432,-228.12627582,0.00012719,2]
[398864625,1765936243441,-912.50510329,0.00012719,2]
[398864626,1765936243450,-2053.13648239,0.00012719,2]
[398864627,1765936243459,-284084.24394248,0.000128,2]
[398864628,1765936243472,-36877.65640394,0.000128,2]
[398864629,1765936246016,-295.13886484,0.000128,2]
[398864630,1765936246069,-162752.7487345,0.000128,2]
[398864631,1765936246080,-1331.17307,0.000128,2]
[398864663,1765937432024,-760.65,0.0001,2]
[398864664,1765937432033,-65.6851839,0.0001,2]
[398864683,1765937438901,-86.5048161,0.0001,2]
[398864685,1765937438910,-172.92903993,0.00010038,2]
[398864687,1765937438919,-328.7639314,0.000105,2]
[398864689,1765937438929,-380.95588961,0.00010905,2]
[398864691,1765937438938,-685.7206013,0.00010905,2]
[398864693,1765937438947,-500.0,0.00011,2]
[398864695,1765937438956,-201.63381938,0.00011206,2]
[398864697,1765937438966,-362.94087489,0.00011206,2]
[398864699,1765937438975,-381.59341244,0.00011796,2]
[398864701,1765937438984,-300.0,0.0001194,2]
[398864703,1765937438993,-249.39685378,0.00011941,2]
[398864705,1765937439003,-996.5898277,0.00011941,2]
[398864706,1765937439012,-1200.0,0.00011999,2]
[398864707,1765937439021,-500.0,0.00012,2]
[398864708,1765937439030,-204.05626712,0.00012038,2]
[398864709,1765937439039,-205.81759097,0.00012186,2]
[398864710,1765937439048,-2000.0,0.000123,2]
[398864711,1765937439057,-500.0,0.00012328,2]
[398864712,1765937439066,-500.0,0.00012328,3]
[398864713,1765937439075,-500.0,0.00012328,4]
[398864714,1765937439085,-228.6239379,0.0001257,2]
[398864715,1765937439094,-300.58991638,0.0001257,2]
[398864716,1765937439103,-1201.15730584,0.0001257,2]
[398864717,1765937439112,-525.53787593,0.00012598,2]
[398864718,1765937439121,-2000.0,0.000126,3]
[398864719,1765937439130,-311.90990666,0.00012727,2]
[398864720,1765937439140,-190.7330153,0.00012728,2]
[398864721,1765937439149,-24068.1397928,0.00012728,2]
[398864722,1765937439157,-198.08824625,0.00012729,2]
[398864723,1765937439167,-354.84905989,0.00012771,5]
[398864724,1765937439176,-647.32997919,0.00012799,5]
[398864725,1765937439185,-2000.0,0.000128,4]
[398864726,1765937439194,-7304.11820881,0.000129,2]
[398864727,1765937439203,-269.57466476,0.00012966,2]
[398864728,1765937439213,-485.23439657,0.00012966,2]
[398864729,1765937439222,-382.0567687,0.00012968,2]
[398864730,1765937439231,-500.0,0.00012999,2]
[398864731,1765937439240,-300.0,0.00013055,2]
[398864732,1765937439249,-300.0,0.00013055,2]
[398864733,1765937439259,-300.0,0.00013055,2]
[398864734,1765937439268,-300.0,0.00013055,2]
[398864735,1765937439277,-300.0,0.00013055,2]
[398864736,1765937439287,-300.0,0.00013055,2]
[398864737,1765937439296,-300.0,0.00013055,2]
[398864738,1765937439311,-300.0,0.00013055,2]
[398864739,1765937439323,-300.0,0.00013055,2]
[398864740,1765937439333,-300.0,0.00013055,2]
[398864741,1765937439342,-300.0,0.00013055,2]
[398864742,1765937439352,-300.0,0.00013055,2]
[398864743,1765937439361,-300.0,0.00013055,2]
[398864744,1765937439370,-300.0,0.00013055,2]
[398864745,1765937439379,-300.0,0.00013055,2]
[398864746,1765937439388,-600.0,0.00013055,2]
[398864747,1765937439397,-2000.0,0.000132,5]
[398864748,1765937439406,-501.46344208,0.00013231,2]
[398864749,1765937439416,-179.39379719,0.00013231,2]
[398864750,1765937439425,-265.41652686,0.00013231,2]
[398864751,1765937439435,-505.34890486,0.00013273,2]
[398864752,1765937439444,-500.0,0.00013273,2]
[398864753,1765937439453,-500.0,0.00013273,2]
[398864754,1765937439462,-500.0,0.00013273,2]
[398864755,1765937439471,-500.0,0.00013273,2]
[398864756,1765937439480,-502.58794908,0.00013273,2]
[398864757,1765937439488,-506.50816276,0.00013273,2]
[398864758,1765937439498,-500.0,0.00013273,2]
[398864759,1765937439507,-710548.48063643,0.00013299,2]
[398864760,1765937439518,-500.0,0.00013299,2]
[398864761,1765937439527,-385.266,0.000133,2]
[398864762,1765937439536,-5578.7853326,0.00013321,2]
[398864763,1765937439545,-869.8680494,0.00013323,2]
[398864764,1765937439553,-20000.0,0.00013385,2]
[398864765,1765937439562,-514.84070869,0.00013385,2]
[398864766,1765937439571,-579.7815311,0.00013399,2]
[398864767,1765937439580,-500.000001,0.000134,2]
[398864768,1765937439590,-179.61162914,0.00013443,5]
[398864769,1765937439599,-160.28,0.00013566,2]
[398864770,1765937439608,-500.0,0.00013573,2]
[398864771,1765937439617,-300.0,0.00013673,2]
[398864772,1765937439627,-500.0,0.00013698,2]
[398864773,1765937439636,-500.0,0.00013698,2]
[398864774,1765937439648,-528.9802192,0.00013698,2]
[398864775,1765937439658,-1345.241307,0.00013699,2]
[398864776,1765937439667,-1000.0,0.00013699,2]
[398864777,1765937439675,-36426.6774063,0.00013699,2]
[398864778,1765937439687,-2183.251131,0.00013699,2]
[398864779,1765937439697,-500.99949186,0.00013699,2]
[398864780,1765937439706,-500.0,0.00013699,2]
[398864781,1765937439715,-502.16180658,0.00013699,2]
[398864782,1765937439725,-501.25831688,0.00013699,2]
[398864783,1765937439734,-500.72232938,0.00013699,2]
[398864784,1765937439743,-501.01213394,0.00013699,2]
[398864785,1765937439752,-500.0,0.00013699,2]
[398864786,1765937439762,-500.0,0.00013699,2]
[398864788,1765937439771,-500.0,0.00013699,2]
[398864789,1765937439779,-500.0,0.00013699,2]
[398864791,1765937439789,-500.788438,0.00013699,2]
[398864793,1765937439798,-500.0,0.00013699,2]
[398864796,1765937439807,-160.0,0.00013699,2]
[398864797,1765937439818,-504.04940841,0.00013821,2]
[398864798,1765937439827,-1000.0,0.00013821,2]
[398864799,1765937439836,-505.13557817,0.00013821,2]
[398864800,1765937439845,-1000.0,0.00013821,2]
[398864801,1765937439854,-1000.0,0.00013821,2]
[398864802,1765937439863,-500.0,0.00013847,2]
[398864803,1765937439872,-533.88981491,0.00013933,2]
[398864804,1765937439882,-1000.0,0.0001398,2]
[398864805,1765937439891,-507.56231145,0.00014,2]
[398864806,1765937439899,-235.18349431,0.00014038,2]
[398864807,1765937439908,-500.0,0.00014121,2]
[398864808,1765937439917,-600.0,0.00014221,2]
[398864809,1765937439927,-503.6800373,0.00014247,2]
[398864810,1765937439936,-504.10592962,0.00014247,2]
[398864811,1765937439944,-1000.0,0.00014247,2]
[398864812,1765937439953,-426.20601958,0.00014247,2]
[398864813,1765937439962,-1000.0,0.00014247,2]
[398864814,1765937439971,-1000.0,0.00014247,2]
[398864815,1765937439980,-260.0,0.00014247,2]
[398864816,1765937439988,-720.0,0.0001436,2]
[398864817,1765937439997,-1500.0,0.00014368,2]
[398864818,1765937440006,-1500.0,0.00014368,2]
[398864819,1765937440015,-1500.0,0.00014368,2]
[398864820,1765937440024,-500.0,0.00014395,2]
[398864821,1765937440032,-164.91440972,0.00014401,2]
[398864822,1765937440041,-553.64373807,0.00014481,2]
[398864823,1765937440050,-178.87016,0.00014527,2]
[398864824,1765937440058,-443.43411726,0.00014551,2]
[398864825,1765937440066,-500.0,0.00014669,2]
[398864826,1765937440075,-1244.7952646,0.00014709,2]
[398864827,1765937440084,-10049.3620043,0.00014754,2]
[398864828,1765937440092,-900.0,0.00014768,2]
[398864829,1765937440101,-194.2091813,0.00014771,2]
[398864830,1765937440110,-192.6496393,0.00014771,2]
[398864831,1765937440119,-189.1446058,0.00014771,2]
[398864832,1765937440127,-1500.0,0.00014795,2]
[398864833,1765937440136,-1500.0,0.00014795,2]
[398864834,1765937440145,-1500.0,0.00014795,2]
[398864835,1765937440153,-360.0,0.00014795,2]
[398864836,1765937440162,-151.0,0.000148,2]
[398864837,1765937440170,-218.236,0.00014828,2]
[398864838,1765937440179,-237.676,0.00014828,2]
[398864839,1765937440188,-250.0,0.00014828,2]
[398864840,1765937440197,-258.484,0.00014828,2]
[398864841,1765937440206,-266.391,0.00014828,2]
[398864842,1765937440215,-2163.561,0.00014828,2]
[398864843,1765937440224,-1364.299,0.00014828,2]
[398864844,1765937440233,-634.217,0.00014828,2]
[398864845,1765937440242,-415.0,0.00014828,2]
[398864846,1765937440252,-160.0,0.000149,2]
[398864847,1765937440261,-2000.0,0.00014916,2]
[398864848,1765937440270,-2000.0,0.00014916,2]
[398864849,1765937440279,-838.38061279,0.00014916,2]
[398864850,1765937440288,-500.0,0.00014943,2]
[398864851,1765937440296,-1000.0,0.00015,2]
[398864852,1765937440305,-277.7513667,0.00015019,2]
[398864853,1765937440313,-33681.33947548,0.00015028,2]
[398864858,1765937440644,-48199.57652972,0.00015028,2]
[398864859,1765937440728,-18119.0839948,0.00015028,2]
[398864860,1765937440739,-574.12855637,0.00015029,2]
[398864861,1765937440748,-270.278837,0.00015068,2]
[398864862,1765937440758,-273.64116876,0.00015068,2]
[398864863,1765937440768,-869.8680494,0.00015087,2]
[398864864,1765937440777,-151.0,0.000151,2]
[398864865,1765937440787,-500.0,0.00015217,2]
[398864866,1765937440796,-1127.44235505,0.00015316,2]
[398864867,1765937440806,-460.0,0.00015342,2]
[398864868,1765937440816,-2000.0,0.00015342,2]
[398864869,1765937440825,-623.82147531,0.00015342,2]
[398864870,1765937440836,-499.7358338,0.00015342,2]
[398864890,1765937443134,-876.44269089,0.00015342,2]
[398864892,1765937443144,-2000.0,0.00015342,2]
[398864894,1765937443153,-160.0,0.00015377,3]
[398864896,1765937443162,-151.0,0.000154,2]
[398864898,1765937443170,-2500.0,0.00015464,2]
[398864899,1765937443179,-689.72504614,0.00015464,2]
[398865068,1765937446166,-1818.05831996,0.00015464,2]
[398865069,1765937446176,-500.0,0.00015491,2]
[398865070,1765937446185,-5370.3278864,0.00015575,2]
[398865071,1765937446194,-595.37131296,0.00015577,2]
[398865072,1765937446203,-151.0,0.000156,2]
[398865073,1765937446213,-2000.0,0.000156,6]
[398865074,1765937446222,-250.0,0.00015616,3]
[398865075,1765937446230,-160.0,0.00015647,4]
[398865076,1765937446239,-500.0,0.00015765,2]
[398865077,1765937446248,-864.0,0.00015797,2]
[398865078,1765937446258,-160.0,0.000158,2]
[398865079,1765937446267,-560.0,0.0001589,2]
[398865080,1765937446277,-2500.0,0.0001589,2]
[398865081,1765937446287,-2500.0,0.0001589,2]
[398865082,1765937446296,-2500.0,0.0001589,2]
[398865083,1765937446306,-160.0,0.000159,2]
[398865084,1765937446314,-160.0,0.000159,2]
[398865085,1765937446323,-160.0,0.00015916,5]
[398865086,1765937446332,-241.0,0.00016,2]
[398865087,1765937446341,-3000.0,0.00016012,2]
[398865088,1765937446350,-266.31072149,0.00016038,2]
[398865089,1765937446360,-500.0,0.00016039,2]
[398865090,1765937446369,-174.16766626,0.00016125,2]
[398865091,1765937446378,-160.0,0.00016186,6]
[398865092,1765937446387,-1198.2821213,0.0001621,2]
[398865093,1765937446396,-7304.11820876,0.00016241,2]
[398865094,1765937446405,-500.0,0.00016313,2]
[398865095,1765937446414,-660.0,0.00016438,2]
[398865096,1765937446423,-3000.0,0.00016438,2]
[398865097,1765937446434,-3000.0,0.00016438,2]
[398865098,1765937446443,-3000.0,0.00016438,2]
[398865099,1765937446452,-160.0,0.00016456,7]
[398865100,1765937446462,-160.0,0.000165,3]
[398865101,1765937446471,-160.0,0.000165,3]
[398865102,1765937446480,-1317.1674291,0.0001656,2]
[398865103,1765937446489,-500.0,0.00016587,2]
[398865104,1765937446498,-160.0,0.00016725,8]
[398865105,1765937446507,-869.8680494,0.00016851,2]
[398865106,1765937446516,-500.0,0.00016861,2]
[398865107,1765937446525,-256.0017281,0.0001688,2]
[398865108,1765937446534,-160.0,0.000169,2]
[398865109,1765937446543,-160.0,0.000169,2]
[398865110,1765937446552,-760.0,0.00016986,2]
[398865111,1765937446560,-3010.77032884,0.00016986,2]
[398865112,1765937446570,-3500.0,0.00016986,2]
[398865113,1765937446579,-3500.0,0.00016986,2]
[398865114,1765937446588,-160.0,0.00016995,9]
[398865115,1765937446597,-162.91362868,0.00016995,5]
[398865116,1765937446607,-5857.94360288,0.00017,2]
[398865117,1765937446615,-500.0,0.00017135,2]
[398865118,1765937446625,-1000.0,0.00017376,2]
[398865119,1765937446634,-500.0,0.00017408,2]
[398865120,1765937446644,-860.0,0.00017534,2]
[398865121,1765937446656,-4006.34036418,0.00017534,2]
[398865122,1765937446666,-1505.80389223,0.00017534,2]
[398865123,1765937446675,-500.0,0.00017682,2]
[398865124,1765937446684,-159.0,0.00017808,3]
[398865125,1765937446694,-415.0,0.00017828,2]
[398865126,1765937446703,-500.0,0.00017956,2]
[398865127,1765937446712,-11226.0,0.00018,2]
[398865128,1765937446721,-297.43794868,0.00018038,2]
[398865129,1765937446730,-960.0,0.00018082,2]
[398865130,1765937446739,-2000.0,0.000182,7]
[398865131,1765937446748,-500.0,0.0001823,2]
[398865132,1765937446757,-270.278837,0.00018493,2]
[398865133,1765937446767,-500.0,0.00018504,2]
[398865134,1765937446776,-869.8680494,0.00018616,2]
[398865135,1765937446785,-1060.0,0.0001863,2]
[398865136,1765937446793,-500.0,0.00018778,2]
[398865137,1765937446802,-160.0,0.000189,5]
[398865138,1765937446811,-160.0,0.000189,5]
[398865139,1765937446819,-960.0,0.0001897,5]
[398865140,1765937446828,-690.0,0.0001897,5]
[398865141,1765937446837,-500.0,0.0001899,7]
[398865142,1765937446846,-500.0,0.0001899,7]
[398865143,1765937446855,-172.29,0.0001899,7]
[398865144,1765937446863,-170.75488117,0.00019,2]
[398865145,1765937446872,-190.8034903,0.00019,2]
[398865146,1765937446881,-393.72583727,0.00019,2]
[398865147,1765937446890,-169.80568366,0.00019,2]
[398865148,1765937446899,-447.0,0.00019,7]
[398865149,1765937446908,-192.89252513,0.00019,2]
[398865150,1765937446916,-333.33333333,0.00019,2]
[398865151,1765937446925,-509.12493297,0.00019,2]
[398865152,1765937446934,-223.46692238,0.00019,2]
[398865153,1765937446943,-500.0,0.00019052,2]
[398865154,1765937446952,-1000.0,0.00019114,10]
[398865155,1765937446961,-244.0,0.00019114,10]
[398865156,1765937446970,-1160.0,0.00019178,2]
[398865157,1765937446979,-3633.949085,0.00019178,2]
[398865158,1765937446988,-3633.949085,0.00019178,2]
[398865159,1765937446997,-3633.949085,0.00019178,2]
[398865160,1765937447006,-3633.949085,0.00019178,2]
[398865161,1765937447015,-3633.949085,0.00019178,2]
[398865162,1765937447024,-3633.949085,0.00019178,2]
[398865163,1765937447033,-3633.949085,0.00019178,2]
[398865164,1765937447041,-3633.949085,0.00019178,2]
[398865165,1765937447050,-212.0,0.00019178,10]
[398865166,1765937447059,-500.0,0.00019326,2]
[398865167,1765937447068,-393.72583727,0.00019394,9]
[398865168,1765937447077,-333.33333333,0.00019394,9]
[398865169,1765937447086,-509.12493297,0.00019394,9]
[398865170,1765937447095,-223.46692238,0.00019394,9]
[398865171,1765937447292,-160.0,0.000196,5]
[398865172,1765937447323,-160.0,0.000196,7]
[398865173,1765937447333,-162.0,0.000196,3]
[398865174,1765937447343,-163.12500908,0.000196,4]
[398865175,1765937447351,-500.0,0.000196,2]
[398865176,1765937447360,-1260.0,0.00019726,2]
[398865177,1765937447369,-7304.11820876,0.00019783,2]
[398865178,1765937447378,-393.72583727,0.00019787,17]
[398865179,1765937447386,-192.89252513,0.00019787,17]
[398865180,1765937447395,-509.12493297,0.00019787,17]
[398865181,1765937447404,-223.46692238,0.00019787,17]
[398865182,1765937447414,-333.33333333,0.00019787,17]
[398865183,1765937447424,-160.0,0.000198,7]
[398865184,1765937447433,-160.0,0.000198,7]
[398865185,1765937447443,-1010.8,0.000198,30]
[398865186,1765937447452,-1189.4889364,0.000198,2]
[398865187,1765937447461,-2000.0,0.00019984,7]
[398865188,1765937447470,-500.0,0.0001999,5]
[398865189,1765937447479,-500.0,0.0001999,5]
[398865190,1765937447488,-500.0,0.0001999,2]
[398865191,1765937447497,-500.0,0.0001999,5]
[398865192,1765937447506,-160.0,0.0002,3]
[398865193,1765937447515,-5587.85422027,0.0002,2]
[398865194,1765937447524,-401.73,0.0002,3]
[398865195,1765937447534,-633.30216228,0.0002,2]
[398865196,1765937447543,-1500.0,0.0002,2]
[398865197,1765937447552,-4277.0,0.0002,2]
[398865198,1765937447561,-1704.58053565,0.0002,2]
[398865199,1765937447570,-7051.70774291,0.0002,2]
[398865200,1765937447580,-4573.55440579,0.0002,2]
[398865215,1765938392131,-353.82423985,0.0001,2]
[398865216,1765938442302,3610.8,0.00014,30]
[398865227,1765938632163,-560.0,0.0001,2]
[398865228,1765938632175,-156.44,0.0001,2]
[398865229,1765938632187,-165.41400637,0.00010013,2]
[398865230,1765938632199,-156.44,0.000103,2]
[398865231,1765938632210,-156.44,0.000105,2]
[398865232,1765938632222,-156.44,0.000108,2]
[398865233,1765938632233,-156.44,0.00011,2]
[398865234,1765938632244,-156.44,0.000113,2]
[398865235,1765938632256,-156.44,0.000115,2]
[398865236,1765938632268,-156.44,0.000118,2]
[398865237,1765938632279,-195.18852752,0.00012013,2]
[398865238,1765938632290,-156.44,0.000121,2]
[398865239,1765938632302,-156.44,0.000123,2]
[398865240,1765938632313,-156.44,0.000126,2]
[398865241,1765938632324,-141.45884267,0.00012799,2]
[398865242,1765938632337,-353.09783033,0.00012799,2]
[398865335,1765938638249,-5.443327,0.00012799,2]
[398865336,1765938638260,-198.08824625,0.00012799,2]
[398865337,1765938638271,-156.44,0.000128,2]
[398865338,1765938638282,-156.44,0.000131,2]
[398865339,1765938638293,-1101.0,0.00013272,2]
[398865340,1765938638303,-300.0,0.00013272,2]
[398865341,1765938638314,-300.0,0.00013272,2]
[398865342,1765938638324,-1200.0,0.00013272,2]
[398865343,1765938638334,-491.27843286,0.00013273,2]
[398865344,1765938638345,-500.0,0.00013273,2]
[398865345,1765938638355,-500.0,0.00013273,2]
[398865346,1765938638365,-500.0,0.00013273,2]
[398865347,1765938638376,-156.44,0.000133,2]
[398865348,1765938638386,-500.0,0.00013424,2]
[398865349,1765938638396,-500.0,0.00013461,2]
[398865350,1765938638406,-514.85054004,0.00013461,2]
[398865351,1765938638416,-300.0,0.00013462,2]
[398865352,1765938638427,-300.0,0.00013462,2]
[398865353,1765938638438,-300.0,0.00013462,2]
[398865354,1765938638448,-300.0,0.00013462,2]
[398865355,1765938638459,-300.0,0.00013462,2]
[398865356,1765938638469,-300.0,0.00013462,2]
[398865357,1765938638479,-300.0,0.00013462,2]
[398865358,1765938638490,-300.0,0.00013462,2]
[398865359,1765938638500,-300.0,0.00013462,2]
[398865360,1765938638511,-300.0,0.00013462,2]
[398865361,1765938638521,-300.0,0.00013462,2]
[398865362,1765938638531,-300.0,0.00013462,2]
[398865363,1765938638543,-300.0,0.00013462,2]
[398865364,1765938638554,-300.0,0.00013462,2]
[398865365,1765938638564,-300.0,0.00013462,2]
[398865366,1765938638575,-2857.0688622,0.000135,2]
[398865367,1765938638585,-500.0,0.00013561,2]
[398865368,1765938638596,-156.44,0.000136,2]
[398865369,1765938638607,-300.0,0.00013673,2]
[398865370,1765938638617,-541.83951794,0.00013698,2]
[398865371,1765938638627,-500.0,0.00013698,2]
[398865372,1765938638637,-500.0,0.00013698,2]
[398865373,1765938638647,-500.0,0.00013698,2]
[398865374,1765938638658,-500.0,0.00013698,2]
[398865375,1765938638668,-500.0,0.00013698,2]
[398865376,1765938638678,-500.0,0.00013698,2]
[398865377,1765938638688,-500.0,0.00013698,2]
[398865378,1765938638698,-500.0,0.00013698,2]
[398865379,1765938638708,-512.7413198,0.00013698,2]
[398865380,1765938638717,-500.0,0.00013698,2]
[398865381,1765938638727,-500.0,0.00013698,2]
[398865382,1765938638737,-500.0,0.00013698,2]
[398865383,1765938638747,-500.0,0.00013698,2]
[398865384,1765938638758,-500.0,0.00013698,2]
[398865385,1765938638768,-500.0,0.00013698,2]
[398865386,1765938638777,-500.0,0.00013698,2]
[398865387,1765938638788,-500.0,0.00013698,2]
[398865388,1765938638798,-500.0,0.00013698,2]
[398865389,1765938638808,-500.0,0.00013698,2]
[398865390,1765938638818,-500.0,0.00013698,2]
[398865391,1765938638830,-500.0,0.00013698,2]
[398865392,1765938638840,-567.84122574,0.00013698,2]
[398865393,1765938638850,-500.0,0.00013699,2]
[398865394,1765938638860,-233.22326142,0.00013699,2]
[398865395,1765938638871,-500.0,0.00013699,2]
[398865396,1765938638881,-218.33693466,0.0001372,2]
[398865397,1765938638891,-4565.07388051,0.00013721,2]
[398865398,1765938638901,-600.0,0.0001373,2]
[398865399,1765938638911,-1000.0,0.00013821,2]
[398865400,1765938638922,-1000.0,0.00013821,2]
[398865401,1765938638932,-1000.0,0.00013821,2]
[398865402,1765938638942,-156.44,0.000139,2]
[398865403,1765938638952,-224.96304867,0.00014013,2]
[398865404,1765938638963,-156.44,0.000141,2]
[398865405,1765938638973,-890000.0,0.00014147,2]